[Event "Titled Tuesday Blitz May 10 Early 2022"]
[White "Rustemov, Alexander"]
[Black "Lazavik, Denis"]
[WhiteFideId "4119002"]
[BlackFideId "13515110"]
[WhiteElo "2708"]
[BlackElo "2437"]
[Result "1/2-1/2"]
[Round "04"]
[TimeControl "180+1"]
[Date "2022.05.10"]
[WhiteClock "0:00:16"]
[BlackClock "0:00:11"]

1. d4 {[%clk 0:03:00]}  Nf6 {[%clk 0:02:59]} 2. Bg5 {[%clk 0:02:57]}  d5 {[%clk 0:02:57]} 3. e3 {[%clk 0:02:57]}  c5 {[%clk 0:02:56]} 4. Nf3 {[%clk 0:02:56]}  Ne4 {[%clk 0:02:50]} 5. Bf4 {[%clk 0:02:53]}  Nc6 {[%clk 0:02:50]} 6. c3 {[%clk 0:02:50]}  Qb6 {[%clk 0:02:26]} 7. Qb3 {[%clk 0:02:39]}  c4 {[%clk 0:02:25]} 8. Qc2 {[%clk 0:02:39]}  Bf5 {[%clk 0:02:22]} 9. Qc1 {[%clk 0:02:38]}  e6 {[%clk 0:02:18]} 10. Nbd2 {[%clk 0:02:36]}  Be7 {[%clk 0:02:15]} 11. h3 {[%clk 0:02:35]}  Rc8 {[%clk 0:02:11]} 12. Be2 {[%clk 0:02:34]}  O-O {[%clk 0:02:09]} 13. O-O {[%clk 0:02:33]}  Qd8 {[%clk 0:02:03]} 14. Re1 {[%clk 0:02:22]}  b5 {[%clk 0:02:02]} 15. a3 {[%clk 0:02:21]}  a5 {[%clk 0:02:02]} 16. Nxe4 {[%clk 0:02:21]}  Bxe4 {[%clk 0:02:02]} 17. Nd2 {[%clk 0:02:16]}  Bg6 {[%clk 0:01:58]} 18. Bf3 {[%clk 0:02:12]}  f5 {[%clk 0:01:36]} 19. Bd1 {[%clk 0:02:03]}  Qb6 {[%clk 0:01:27]} 20. Nf3 {[%clk 0:02:01]}  Bh5 {[%clk 0:01:19]} 21. Ne5 {[%clk 0:01:57]}  Nxe5 {[%clk 0:01:17]} 22. Bxe5 {[%clk 0:01:55]}  Bxd1 {[%clk 0:01:16]} 23. Qxd1 {[%clk 0:01:51]}  Bd6 {[%clk 0:01:14]} 24. Bxd6 {[%clk 0:01:38]}  Qxd6 {[%clk 0:01:15]} 25. Qf3 {[%clk 0:01:32]}  Ra8 {[%clk 0:01:07]} 26. g3 {[%clk 0:01:10]}  b4 {[%clk 0:00:56]} 27. axb4 {[%clk 0:01:09]}  axb4 {[%clk 0:00:55]} 28. Kg2 {[%clk 0:01:04]}  b3 {[%clk 0:00:52]} 29. Rab1 {[%clk 0:00:58]}  Ra2 {[%clk 0:00:52]} 30. Re2 {[%clk 0:00:58]}  Rfa8 {[%clk 0:00:45]} 31. Rbe1 {[%clk 0:00:58]}  Ra1 {[%clk 0:00:44]} 32. g4 {[%clk 0:00:52]}  Rxe1 {[%clk 0:00:41]} 33. Rxe1 {[%clk 0:00:52]}  g6 {[%clk 0:00:41]} 34. g5 {[%clk 0:00:40]}  Kg7 {[%clk 0:00:37]} 35. h4 {[%clk 0:00:40]}  h6 {[%clk 0:00:35]} 36. Qg3 {[%clk 0:00:27]}  Qxg3+ {[%clk 0:00:30]} 37. Kxg3 {[%clk 0:00:28]}  hxg5 {[%clk 0:00:30]} 38. hxg5 {[%clk 0:00:28]}  Rh8 {[%clk 0:00:23]} 39. Kf4 {[%clk 0:00:26]}  Rh2 {[%clk 0:00:22]} 40. Rf1 {[%clk 0:00:16]}  Kf7 {[%clk 0:00:14]} 41. Kg3 {[%clk 0:00:16]}  Rh5 {[%clk 0:00:13]} 42. f4 {[%clk 0:00:16]}  Rh8 {[%clk 0:00:10]} 43. Ra1 {[%clk 0:00:16]}  Re8 {[%clk 0:00:10]} 44. Ra7+ {[%clk 0:00:16]}  Re7 {[%clk 0:00:10]} 45. Rxe7+ {[%clk 0:00:16]}  Kxe7 {[%clk 0:00:11]} 1/2-1/2


[Site "https://www.chess.com"]

[Event "Titled Tuesday Blitz May 10 Early 2022"]
[White "Saldano Dayer, Horacio"]
[Black "Wagh Suyog"]
[WhiteFideId "103411"]
[BlackFideId "25071688"]
[WhiteElo "2532"]
[BlackElo "2725"]
[Result "0-1"]
[Round "04"]
[TimeControl "180+1"]
[Date "2022.05.11"]
[WhiteClock "0:00:06"]
[BlackClock "0:01:34"]

1. d4 {[%clk 0:03:00]}  Nf6 {[%clk 0:02:59]} 2. Bg5 {[%clk 0:03:00]}  d5 {[%clk 0:02:58]} 3. e3 {[%clk 0:02:59]}  Bg4 {[%clk 0:02:51]} 4. f3 {[%clk 0:02:55]}  Bf5 {[%clk 0:02:50]} 5. c4 {[%clk 0:02:53]}  c6 {[%clk 0:02:47]} 6. Nc3 {[%clk 0:02:52]}  e6 {[%clk 0:02:46]} 7. g4 {[%clk 0:02:49]}  Bg6 {[%clk 0:02:46]} 8. Qb3 {[%clk 0:02:47]}  Qb6 {[%clk 0:02:42]} 9. c5 {[%clk 0:02:46]}  Qc7 {[%clk 0:02:43]} 10. Bf4 {[%clk 0:02:40]}  Qc8 {[%clk 0:02:42]} 11. h4 {[%clk 0:02:37]}  h6 {[%clk 0:02:42]} 12. Qd1 {[%clk 0:02:32]}  Nbd7 {[%clk 0:02:41]} 13. b4 {[%clk 0:02:27]}  Be7 {[%clk 0:02:41]} 14. Nge2 {[%clk 0:02:11]}  Bd8 {[%clk 0:02:39]} 15. a4 {[%clk 0:01:54]}  Bc7 {[%clk 0:02:39]} 16. Bxc7 {[%clk 0:01:51]}  Qxc7 {[%clk 0:02:39]} 17. Nf4 {[%clk 0:01:52]}  e5 {[%clk 0:02:38]} 18. Nxg6 {[%clk 0:01:51]}  fxg6 {[%clk 0:02:39]} 19. Qc2 {[%clk 0:01:40]}  O-O {[%clk 0:02:36]} 20. Qh2 {[%clk 0:01:22]}  a5 {[%clk 0:02:28]} 21. b5 {[%clk 0:01:15]}  b6 {[%clk 0:02:28]} 22. g5 {[%clk 0:01:16]}  Nh5 {[%clk 0:02:23]} 23. bxc6 {[%clk 0:01:15]}  bxc5 {[%clk 0:02:18]} 24. Nxd5 {[%clk 0:00:57]}  Qd6 {[%clk 0:02:14]} 25. Bc4 {[%clk 0:00:56]}  cxd4 {[%clk 0:02:01]} 26. cxd7 {[%clk 0:00:51]}  Kh7 {[%clk 0:01:58]} 27. O-O {[%clk 0:00:40]}  dxe3 {[%clk 0:01:47]} 28. Rac1 {[%clk 0:00:15]}  Qxd7 {[%clk 0:01:44]} 29. Nb6 {[%clk 0:00:14]}  Qd4 {[%clk 0:01:43]} 30. Nxa8 {[%clk 0:00:14]}  e2+ {[%clk 0:01:44]} 31. Qf2 {[%clk 0:00:13]}  exf1=Q+ {[%clk 0:01:43]} 32. Bxf1 {[%clk 0:00:13]}  Qf4 {[%clk 0:01:43]} 33. Rc7 {[%clk 0:00:08]}  Rxa8 {[%clk 0:01:39]} 34. gxh6 {[%clk 0:00:07]}  e4 {[%clk 0:01:34]} 35. hxg7 {[%clk 0:00:06]}  Qxc7 {[%clk 0:01:34]} 0-1


[Site "https://www.chess.com"]

[Event "Titled Tuesday Blitz May 10 Early 2022"]
[White "Samadov, Read"]
[Black "Al-Tarboush, Ward"]
[WhiteFideId "13417444"]
[BlackFideId "7601450"]
[WhiteElo "2826"]
[BlackElo "2567"]
[Result "1-0"]
[Round "04"]
[TimeControl "180+1"]
[Date "2022.05.11"]
[WhiteClock "0:01:49"]
[BlackClock "0:00:58"]

1. d4 {[%clk 0:03:00]}  b6 {[%clk 0:03:00]} 2. c4 {[%clk 0:03:00]}  Bb7 {[%clk 0:03:00]} 3. Nc3 {[%clk 0:03:00]}  Nf6 {[%clk 0:03:01]} 4. a3 {[%clk 0:03:00]}  d5 {[%clk 0:02:53]} 5. Nf3 {[%clk 0:02:56]}  e6 {[%clk 0:02:52]} 6. cxd5 {[%clk 0:02:55]}  Nxd5 {[%clk 0:02:51]} 7. Qc2 {[%clk 0:02:55]}  Be7 {[%clk 0:02:47]} 8. e4 {[%clk 0:02:54]}  Nxc3 {[%clk 0:02:46]} 9. bxc3 {[%clk 0:02:54]}  O-O {[%clk 0:02:45]} 10. Bd3 {[%clk 0:02:55]}  Nd7 {[%clk 0:02:32]} 11. O-O {[%clk 0:02:54]}  Re8 {[%clk 0:02:32]} 12. Qe2 {[%clk 0:02:51]}  c5 {[%clk 0:02:31]} 13. Bb2 {[%clk 0:02:51]}  Rc8 {[%clk 0:02:30]} 14. Rad1 {[%clk 0:02:49]}  Nf8 {[%clk 0:02:27]} 15. Rfe1 {[%clk 0:02:45]}  Ng6 {[%clk 0:02:27]} 16. g3 {[%clk 0:02:44]}  Rc7 {[%clk 0:02:22]} 17. h4 {[%clk 0:02:42]}  h6 {[%clk 0:02:13]} 18. h5 {[%clk 0:02:41]}  Nf8 {[%clk 0:02:13]} 19. Bb1 {[%clk 0:02:35]}  Qa8 {[%clk 0:02:13]} 20. Ne5 {[%clk 0:02:31]}  Nh7 {[%clk 0:02:08]} 21. d5 {[%clk 0:02:21]}  exd5 {[%clk 0:02:06]} 22. exd5 {[%clk 0:02:20]}  Bd6 {[%clk 0:01:42]} 23. Qd3 {[%clk 0:01:59]}  Nf6 {[%clk 0:01:37]} 24. Ng4 {[%clk 0:01:52]}  Rxe1+ {[%clk 0:00:57]} 25. Rxe1 {[%clk 0:01:51]}  Re7 {[%clk 0:00:58]} 26. Nxf6+ {[%clk 0:01:49]} 1-0


[Site "https://www.chess.com"]

[Event "Titled Tuesday Blitz May 10 Early 2022"]
[White "Sanchez, Robert"]
[Black "D`Arruda, Ricardo D."]
[WhiteFideId "2034360"]
[BlackFideId "100692"]
[WhiteElo "2140"]
[BlackElo "2453"]
[Result "1-0"]
[Round "04"]
[TimeControl "180+1"]
[Date "2022.05.11"]
[WhiteClock "0:00:03"]
[BlackClock "0:00:01"]

1. e4 {[%clk 0:03:00]}  c5 {[%clk 0:02:52]} 2. Nf3 {[%clk 0:03:01]}  Nc6 {[%clk 0:02:51]} 3. d4 {[%clk 0:03:00]}  cxd4 {[%clk 0:02:52]} 4. Nxd4 {[%clk 0:03:00]}  e5 {[%clk 0:02:52]} 5. Nb5 {[%clk 0:03:00]}  a6 {[%clk 0:02:52]} 6. Nd6+ {[%clk 0:02:58]}  Bxd6 {[%clk 0:02:53]} 7. Qxd6 {[%clk 0:02:58]}  Qe7 {[%clk 0:02:53]} 8. Qd1 {[%clk 0:02:57]}  Nf6 {[%clk 0:02:52]} 9. Bd3 {[%clk 0:02:57]}  d5 {[%clk 0:02:48]} 10. exd5 {[%clk 0:02:52]}  Nxd5 {[%clk 0:02:49]} 11. O-O {[%clk 0:02:52]}  Be6 {[%clk 0:02:47]} 12. Qe2 {[%clk 0:02:48]}  O-O-O {[%clk 0:02:46]} 13. c3 {[%clk 0:02:45]}  Nf4 {[%clk 0:02:37]} 14. Bxf4 {[%clk 0:02:44]}  exf4 {[%clk 0:02:37]} 15. Na3 {[%clk 0:02:40]}  Kb8 {[%clk 0:02:24]} 16. Rfe1 {[%clk 0:02:31]}  Qc5 {[%clk 0:02:17]} 17. Qf3 {[%clk 0:02:26]}  g5 {[%clk 0:02:16]} 18. Be4 {[%clk 0:02:14]}  Ne5 {[%clk 0:02:02]} 19. Qh5 {[%clk 0:02:14]}  f6 {[%clk 0:01:58]} 20. Qh6 {[%clk 0:02:05]}  Qe7 {[%clk 0:01:49]} 21. Bc2 {[%clk 0:01:59]}  Rd2 {[%clk 0:01:44]} 22. Bb3 {[%clk 0:01:48]}  Rxb2 {[%clk 0:01:27]} 23. Bxe6 {[%clk 0:01:24]}  Qxe6 {[%clk 0:01:28]} 24. Rab1 {[%clk 0:01:21]}  Rxb1 {[%clk 0:00:45]} 25. Rxb1 {[%clk 0:01:19]}  Rc8 {[%clk 0:00:46]} 26. Qxh7 {[%clk 0:01:12]}  Rc7 {[%clk 0:00:45]} 27. Qh8+ {[%clk 0:01:09]}  Ka7 {[%clk 0:00:45]} 28. Qd8 {[%clk 0:01:02]}  Rd7 {[%clk 0:00:33]} 29. Qa5 {[%clk 0:00:54]}  Rd5 {[%clk 0:00:28]} 30. Qb4 {[%clk 0:00:47]}  Qd7 {[%clk 0:00:28]} 31. h3 {[%clk 0:00:37]}  f3 {[%clk 0:00:26]} 32. c4 {[%clk 0:00:30]}  Rd1+ {[%clk 0:00:16]} 33. Rxd1 {[%clk 0:00:30]}  Qxd1+ {[%clk 0:00:16]} 34. Kh2 {[%clk 0:00:31]}  fxg2 {[%clk 0:00:15]} 35. Kxg2 {[%clk 0:00:32]}  Qf3+ {[%clk 0:00:14]} 36. Kg1 {[%clk 0:00:25]}  Qxf2+ {[%clk 0:00:14]} 37. Kxf2 {[%clk 0:00:23]}  Nd3+ {[%clk 0:00:14]} 38. Kf3 {[%clk 0:00:23]}  Nxb4 {[%clk 0:00:15]} 39. Ke4 {[%clk 0:00:23]}  Nxa2 {[%clk 0:00:16]} 40. Kf5 {[%clk 0:00:23]}  Kb6 {[%clk 0:00:12]} 41. Kxf6 {[%clk 0:00:24]}  Kc5 {[%clk 0:00:13]} 42. Kxg5 {[%clk 0:00:24]}  Nc3 {[%clk 0:00:13]} 43. Kf5 {[%clk 0:00:17]}  Ne2 {[%clk 0:00:12]} 44. Kg4 {[%clk 0:00:15]}  Nc3 {[%clk 0:00:10]} 45. h4 {[%clk 0:00:15]}  Kb4 {[%clk 0:00:10]} 46. Nc2+ {[%clk 0:00:11]}  Kxc4 {[%clk 0:00:10]} 47. h5 {[%clk 0:00:12]}  Ne4 {[%clk 0:00:10]} 48. h6 {[%clk 0:00:10]}  Nf6+ {[%clk 0:00:10]} 49. Kf5 {[%clk 0:00:10]}  Nh7 {[%clk 0:00:10]} 50. Kg6 {[%clk 0:00:10]}  Nf8+ {[%clk 0:00:08]} 51. Kf7 {[%clk 0:00:09]}  Nh7 {[%clk 0:00:08]} 52. Kg7 {[%clk 0:00:09]}  Ng5 {[%clk 0:00:08]} 53. Ne3+ {[%clk 0:00:09]}  Kd4 {[%clk 0:00:07]} 54. Kg6 {[%clk 0:00:10]}  Ne6 {[%clk 0:00:06]} 55. Nf5+ {[%clk 0:00:09]}  Ke5 {[%clk 0:00:06]} 56. Ng7 {[%clk 0:00:08]}  Nf8+ {[%clk 0:00:06]} 57. Kf7 {[%clk 0:00:08]}  Nh7 {[%clk 0:00:06]} 58. Ne8 {[%clk 0:00:07]}  Kf5 {[%clk 0:00:05]} 59. Kg7 {[%clk 0:00:07]}  Ng5 {[%clk 0:00:05]} 60. Nd6+ {[%clk 0:00:07]}  Ke6 {[%clk 0:00:05]} 61. Ne4 {[%clk 0:00:03]}  Nf7 {[%clk 0:00:05]} 62. h7 {[%clk 0:00:03]}  a5 {[%clk 0:00:04]} 63. Ng5+ {[%clk 0:00:03]}  Nxg5 {[%clk 0:00:01]} 64. h8=Q {[%clk 0:00:04]}  Ne4 {[%clk 0:00:01]} 65. Qc8+ {[%clk 0:00:03]} 1-0


[Site "https://www.chess.com"]

[Event "Titled Tuesday Blitz May 10 Early 2022"]
[White "Sharbaf, Mohsen"]
[Black "Raahul V S"]
[WhiteFideId "12501808"]
[BlackFideId "25035525"]
[WhiteElo "2187"]
[BlackElo "2185"]
[Result "0-1"]
[Round "04"]
[TimeControl "180+1"]
[Date "2022.05.11"]
[WhiteClock "0:00:11"]
[BlackClock "0:00:38"]

1. c4 {[%clk 0:02:56]}  c5 {[%clk 0:02:59]} 2. Nf3 {[%clk 0:02:55]}  Nf6 {[%clk 0:02:59]} 3. g3 {[%clk 0:02:56]}  d5 {[%clk 0:03:00]} 4. cxd5 {[%clk 0:02:55]}  Nxd5 {[%clk 0:03:01]} 5. Bg2 {[%clk 0:02:55]}  Nc6 {[%clk 0:03:01]} 6. O-O {[%clk 0:02:55]}  Nc7 {[%clk 0:03:01]} 7. Nc3 {[%clk 0:02:55]}  e5 {[%clk 0:03:02]} 8. d3 {[%clk 0:02:54]}  Be7 {[%clk 0:03:02]} 9. Ne1 {[%clk 0:02:54]}  O-O {[%clk 0:03:01]} 10. Bxc6 {[%clk 0:02:53]}  bxc6 {[%clk 0:03:01]} 11. Nf3 {[%clk 0:02:53]}  f6 {[%clk 0:03:01]} 12. Qc2 {[%clk 0:02:50]}  Be6 {[%clk 0:02:58]} 13. Be3 {[%clk 0:02:49]}  Rc8 {[%clk 0:02:48]} 14. Ne4 {[%clk 0:02:48]}  Nd5 {[%clk 0:02:46]} 15. Bxc5 {[%clk 0:02:48]}  f5 {[%clk 0:02:45]} 16. Bxe7 {[%clk 0:02:46]}  Qxe7 {[%clk 0:02:46]} 17. Nc5 {[%clk 0:02:46]}  Bf7 {[%clk 0:02:37]} 18. a3 {[%clk 0:02:22]}  Bh5 {[%clk 0:02:32]} 19. Kg2 {[%clk 0:02:17]}  Rce8 {[%clk 0:02:25]} 20. b4 {[%clk 0:02:13]}  e4 {[%clk 0:02:23]} 21. dxe4 {[%clk 0:02:13]}  fxe4 {[%clk 0:02:22]} 22. Nd4 {[%clk 0:02:13]}  Qf6 {[%clk 0:02:21]} 23. Qc4 {[%clk 0:02:02]}  Qg6 {[%clk 0:01:52]} 24. Kh1 {[%clk 0:01:47]}  Kh8 {[%clk 0:01:38]} 25. b5 {[%clk 0:01:44]}  Nb6 {[%clk 0:01:35]} 26. Qa2 {[%clk 0:01:35]}  Qd6 {[%clk 0:01:30]} 27. Nde6 {[%clk 0:01:16]}  Bf7 {[%clk 0:01:25]} 28. Rad1 {[%clk 0:01:07]}  Qe7 {[%clk 0:01:19]} 29. bxc6 {[%clk 0:00:57]}  Bxe6 {[%clk 0:01:18]} 30. Nxe6 {[%clk 0:00:57]}  Qxe6 {[%clk 0:01:17]} 31. Qxe6 {[%clk 0:00:45]}  Rxe6 {[%clk 0:01:18]} 32. Rc1 {[%clk 0:00:45]}  Rc8 {[%clk 0:01:17]} 33. Rfd1 {[%clk 0:00:45]}  Kg8 {[%clk 0:01:10]} 34. Rd4 {[%clk 0:00:33]}  e3 {[%clk 0:00:59]} 35. f4 {[%clk 0:00:31]}  Rexc6 {[%clk 0:00:57]} 36. Rb1 {[%clk 0:00:15]}  Rc2 {[%clk 0:00:50]} 37. Kg2 {[%clk 0:00:14]}  Rxe2+ {[%clk 0:00:45]} 38. Kf3 {[%clk 0:00:14]}  Rxh2 {[%clk 0:00:42]} 39. Kxe3 {[%clk 0:00:14]}  Rc3+ {[%clk 0:00:42]} 40. Ke4 {[%clk 0:00:12]}  Re2+ {[%clk 0:00:40]} 41. Kf5 {[%clk 0:00:11]}  Rxg3 {[%clk 0:00:39]} 42. a4 {[%clk 0:00:11]}  Kf7 {[%clk 0:00:38]} 43. a5 {[%clk 0:00:11]}  g6# {[%clk 0:00:38]} 0-1


[Site "https://www.chess.com"]

[Event "Titled Tuesday Blitz May 10 Early 2022"]
[White "Shukhman, Anna"]
[Black "Skliarov, Viktor"]
[WhiteFideId "54180058"]
[BlackFideId "14106736"]
[WhiteElo "1726"]
[BlackElo "2229"]
[Result "0-1"]
[Round "04"]
[TimeControl "180+1"]
[Date "2022.05.11"]
[WhiteClock "0:00:07"]
[BlackClock "0:00:10"]

1. e4 {[%clk 0:03:00]}  c5 {[%clk 0:02:59]} 2. Nf3 {[%clk 0:03:00]}  Nc6 {[%clk 0:03:00]} 3. Bb5 {[%clk 0:02:59]}  e6 {[%clk 0:03:00]} 4. O-O {[%clk 0:02:55]}  Nge7 {[%clk 0:03:00]} 5. c3 {[%clk 0:02:55]}  a6 {[%clk 0:03:01]} 6. Ba4 {[%clk 0:02:54]}  b5 {[%clk 0:03:01]} 7. Bc2 {[%clk 0:02:54]}  d5 {[%clk 0:02:59]} 8. exd5 {[%clk 0:02:51]}  Nxd5 {[%clk 0:02:55]} 9. a4 {[%clk 0:02:49]}  b4 {[%clk 0:02:45]} 10. d4 {[%clk 0:02:47]}  c4 {[%clk 0:02:40]} 11. Nbd2 {[%clk 0:02:31]}  bxc3 {[%clk 0:02:24]} 12. Nxc4 {[%clk 0:02:31]}  cxb2 {[%clk 0:02:23]} 13. Bxb2 {[%clk 0:02:31]}  Be7 {[%clk 0:02:22]} 14. Rc1 {[%clk 0:02:24]}  O-O {[%clk 0:02:17]} 15. Bb1 {[%clk 0:02:23]}  Ncb4 {[%clk 0:02:07]} 16. Nce5 {[%clk 0:02:17]}  Bb7 {[%clk 0:02:04]} 17. Nd2 {[%clk 0:02:12]}  Nf6 {[%clk 0:01:57]} 18. Re1 {[%clk 0:01:53]}  Rc8 {[%clk 0:01:38]} 19. Ne4 {[%clk 0:01:36]}  Nxe4 {[%clk 0:01:24]} 20. Bxe4 {[%clk 0:01:31]}  Bxe4 {[%clk 0:01:25]} 21. Rxc8 {[%clk 0:01:22]}  Qxc8 {[%clk 0:01:24]} 22. Rxe4 {[%clk 0:01:22]}  Qb7 {[%clk 0:00:58]} 23. Re2 {[%clk 0:01:01]}  Rc8 {[%clk 0:00:53]} 24. h3 {[%clk 0:01:01]}  Bd6 {[%clk 0:00:47]} 25. g3 {[%clk 0:00:54]}  h6 {[%clk 0:00:33]} 26. Nd3 {[%clk 0:00:53]}  Qf3 {[%clk 0:00:28]} 27. Nxb4 {[%clk 0:00:45]}  Bxb4 {[%clk 0:00:29]} 28. Qf1 {[%clk 0:00:33]}  Qb3 {[%clk 0:00:22]} 29. Bc1 {[%clk 0:00:22]}  Qxa4 {[%clk 0:00:21]} 30. Bf4 {[%clk 0:00:21]}  Qb5 {[%clk 0:00:19]} 31. Be5 {[%clk 0:00:19]}  Bf8 {[%clk 0:00:18]} 32. Qd1 {[%clk 0:00:16]}  a5 {[%clk 0:00:17]} 33. Rc2 {[%clk 0:00:15]}  Rxc2 {[%clk 0:00:16]} 34. Qxc2 {[%clk 0:00:14]}  Qa6 {[%clk 0:00:15]} 35. Qc7 {[%clk 0:00:13]}  a4 {[%clk 0:00:13]} 36. Qc2 {[%clk 0:00:11]}  a3 {[%clk 0:00:13]} 37. Qa2 {[%clk 0:00:11]}  Qb5 {[%clk 0:00:13]} 38. d5 {[%clk 0:00:08]}  Qxd5 {[%clk 0:00:12]} 39. Qxd5 {[%clk 0:00:07]}  exd5 {[%clk 0:00:13]} 40. Kf1 {[%clk 0:00:07]}  Bc5 {[%clk 0:00:13]} 41. Ke2 {[%clk 0:00:07]}  d4 {[%clk 0:00:10]} 0-1


[Site "https://www.chess.com"]

[Event "Titled Tuesday Blitz May 10 Early 2022"]
[White "Silva, Mariana Sofia T."]
[Black "Lomaia, Diana"]
[WhiteFideId "1911899"]
[BlackFideId "13612476"]
[WhiteElo "1825"]
[BlackElo "1744"]
[Result "0-1"]
[Round "04"]
[TimeControl "180+1"]
[Date "2022.05.11"]
[WhiteClock "0:00:05"]
[BlackClock "0:01:07"]

1. d4 {[%clk 0:03:00]}  d5 {[%clk 0:02:59]} 2. c4 {[%clk 0:02:59]}  dxc4 {[%clk 0:03:00]} 3. e3 {[%clk 0:02:58]}  Nf6 {[%clk 0:03:00]} 4. Bxc4 {[%clk 0:02:58]}  e6 {[%clk 0:03:01]} 5. Nf3 {[%clk 0:02:57]}  c5 {[%clk 0:03:01]} 6. O-O {[%clk 0:02:52]}  a6 {[%clk 0:03:02]} 7. Be2 {[%clk 0:02:36]}  Nc6 {[%clk 0:03:01]} 8. dxc5 {[%clk 0:02:32]}  Qxd1 {[%clk 0:02:56]} 9. Rxd1 {[%clk 0:02:32]}  Bxc5 {[%clk 0:02:57]} 10. Nc3 {[%clk 0:02:32]}  O-O {[%clk 0:02:57]} 11. b3 {[%clk 0:02:22]}  b5 {[%clk 0:02:57]} 12. Bb2 {[%clk 0:02:21]}  Bb7 {[%clk 0:02:58]} 13. Rac1 {[%clk 0:02:20]}  Bb6 {[%clk 0:02:48]} 14. Nb1 {[%clk 0:01:56]}  Rfd8 {[%clk 0:02:44]} 15. Nbd2 {[%clk 0:01:55]}  Nb4 {[%clk 0:02:41]} 16. a3 {[%clk 0:01:48]}  Nbd5 {[%clk 0:02:25]} 17. Nf1 {[%clk 0:01:41]}  Ne4 {[%clk 0:02:20]} 18. Nd4 {[%clk 0:01:35]}  Rac8 {[%clk 0:02:16]} 19. a4 {[%clk 0:01:26]}  Nec3 {[%clk 0:02:09]} 20. Bxc3 {[%clk 0:01:17]}  Nxc3 {[%clk 0:02:10]} 21. Rxc3 {[%clk 0:01:09]}  Rxc3 {[%clk 0:02:08]} 22. axb5 {[%clk 0:01:06]}  Bxd4 {[%clk 0:01:53]} 23. exd4 {[%clk 0:01:05]}  axb5 {[%clk 0:01:51]} 24. Bxb5 {[%clk 0:00:58]}  Rxb3 {[%clk 0:01:52]} 25. Bc4 {[%clk 0:00:56]}  Rb4 {[%clk 0:01:51]} 26. Ne3 {[%clk 0:00:52]}  Rb6 {[%clk 0:01:34]} 27. d5 {[%clk 0:00:38]}  Rbd6 {[%clk 0:01:30]} 28. h4 {[%clk 0:00:28]}  exd5 {[%clk 0:01:26]} 29. Ba2 {[%clk 0:00:22]}  g6 {[%clk 0:01:22]} 30. Rb1 {[%clk 0:00:20]}  Ba8 {[%clk 0:01:18]} 31. g3 {[%clk 0:00:19]}  d4 {[%clk 0:01:18]} 32. Ng4 {[%clk 0:00:18]}  Kg7 {[%clk 0:01:15]} 33. Ne5 {[%clk 0:00:16]}  Bd5 {[%clk 0:01:14]} 34. Bxd5 {[%clk 0:00:15]}  Rxd5 {[%clk 0:01:15]} 35. Nd3 {[%clk 0:00:15]}  Rc8 {[%clk 0:01:12]} 36. Rb7 {[%clk 0:00:14]}  Rc3 {[%clk 0:01:11]} 37. Nf4 {[%clk 0:00:14]}  Rd6 {[%clk 0:01:09]} 38. Kf1 {[%clk 0:00:13]}  d3 {[%clk 0:01:08]} 39. Ke1 {[%clk 0:00:08]}  d2+ {[%clk 0:01:08]} 40. Kd1 {[%clk 0:00:06]}  Rc1+ {[%clk 0:01:08]} 41. Ke2 {[%clk 0:00:05]}  d1=Q+ {[%clk 0:01:07]} 0-1


[Site "https://www.chess.com"]

[Event "Titled Tuesday Blitz May 10 Early 2022"]
[White "Soucek, Petr"]
[Black "Yurtseven, Melih"]
[WhiteFideId "23715170"]
[BlackFideId "6312160"]
[WhiteElo "1979"]
[BlackElo "2160"]
[Result "0-1"]
[Round "04"]
[TimeControl "180+1"]
[Date "2022.05.11"]
[WhiteClock "0:00:01"]
[BlackClock "0:00:47"]

1. e4 {[%clk 0:02:57]}  e5 {[%clk 0:02:55]} 2. Nf3 {[%clk 0:02:50]}  Nc6 {[%clk 0:02:51]} 3. Nc3 {[%clk 0:02:50]}  Nf6 {[%clk 0:02:48]} 4. d4 {[%clk 0:02:50]}  exd4 {[%clk 0:02:48]} 5. Nxd4 {[%clk 0:02:51]}  Bb4 {[%clk 0:02:43]} 6. Nxc6 {[%clk 0:02:51]}  bxc6 {[%clk 0:02:44]} 7. Bd3 {[%clk 0:02:51]}  d5 {[%clk 0:02:43]} 8. exd5 {[%clk 0:02:51]}  O-O {[%clk 0:02:43]} 9. O-O {[%clk 0:02:51]}  Bg4 {[%clk 0:02:43]} 10. Ne2 {[%clk 0:02:51]}  cxd5 {[%clk 0:02:38]} 11. h3 {[%clk 0:02:50]}  Bh5 {[%clk 0:02:38]} 12. c4 {[%clk 0:02:50]}  Re8 {[%clk 0:02:33]} 13. Qc2 {[%clk 0:02:47]}  dxc4 {[%clk 0:02:18]} 14. Qxc4 {[%clk 0:02:39]}  Bg6 {[%clk 0:02:01]} 15. Bxg6 {[%clk 0:02:26]}  hxg6 {[%clk 0:02:02]} 16. Nf4 {[%clk 0:02:27]}  Bd6 {[%clk 0:01:59]} 17. Nxg6 {[%clk 0:02:25]}  Re4 {[%clk 0:01:58]} 18. Qc6 {[%clk 0:01:50]}  fxg6 {[%clk 0:01:51]} 19. Bg5 {[%clk 0:01:50]}  Re6 {[%clk 0:01:41]} 20. Qc4 {[%clk 0:01:25]}  Qd7 {[%clk 0:01:40]} 21. Bxf6 {[%clk 0:01:17]}  gxf6 {[%clk 0:01:41]} 22. f4 {[%clk 0:00:55]}  f5 {[%clk 0:01:30]} 23. Rad1 {[%clk 0:00:46]}  Re8 {[%clk 0:01:28]} 24. h4 {[%clk 0:00:37]}  Kh7 {[%clk 0:01:22]} 25. h5 {[%clk 0:00:24]}  gxh5 {[%clk 0:01:22]} 26. Qd5 {[%clk 0:00:17]}  Qf7 {[%clk 0:01:06]} 27. Rd3 {[%clk 0:00:14]}  Qf6 {[%clk 0:00:58]} 28. Rh3 {[%clk 0:00:13]}  Kh6 {[%clk 0:00:56]} 29. Qf3 {[%clk 0:00:12]}  Qg6 {[%clk 0:00:56]} 30. Kh2 {[%clk 0:00:08]}  Qg4 {[%clk 0:00:52]} 31. Qd3 {[%clk 0:00:02]}  Bxf4+ {[%clk 0:00:48]} 32. g3 {[%clk 0:00:02]}  Re2+ {[%clk 0:00:47]} 33. Kh1 {[%clk 0:00:01]}  Qxh3+ {[%clk 0:00:47]} 34. Kg1 {[%clk 0:00:01]}  Qg2# {[%clk 0:00:47]} 0-1


[Site "https://www.chess.com"]